bitfinex/quotes_BTCUSD_20251201
["timestamp","ask_amount","ask_price","bid_price","bid_amount"]
[1764562659539,0.01162574,86016.0,86012.0,0.01162628]
[1764562659739,0.01178681,86012.0,86011.0,0.00631917]
[1764562660196,0.2463125,86012.0,86011.0,0.01731917]
[1764562660330,0.2463125,86012.0,86011.0,0.07243]
[1764562660529,0.2463125,86012.0,86011.0,0.011]
[1764562660754,0.28442048,86012.0,86011.0,0.011]
[1764562660958,0.2463125,86012.0,86011.0,0.011]
[1764562661688,0.2463125,86012.0,86011.0,0.165]
[1764562661889,0.00039479,86012.0,86011.0,0.17096445]
[1764562662305,0.00039479,86012.0,86010.0,4.446e-05]
[1764562662439,0.01139202,86011.0,86010.0,4.446e-05]
[1764562662872,0.23252839,86011.0,86010.0,4.446e-05]
[1764562663134,0.24392041,86011.0,86010.0,4.446e-05]
[1764562663512,0.00139479,86012.0,86010.0,4.446e-05]
[1764562663513,0.00139479,86012.0,86010.0,0.17729757]
[1764562663668,0.00139479,86012.0,86011.0,0.15286859]
[1764562663869,0.00139479,86012.0,86011.0,0.24543859]
[1764562664101,0.05089479,86012.0,86010.0,4.446e-05]
[1764562664310,0.01139202,86011.0,86010.0,4.446e-05]
[1764562664967,0.01239202,86011.0,86010.0,0.00604446]
[1764562665371,0.01239202,86011.0,86010.0,0.00764708]
[1764562665930,0.001,86011.0,86010.0,0.00764708]
[1764562666317,0.001,86011.0,86010.0,0.06907708]
[1764562666620,0.001,86011.0,86010.0,0.07644479]
[1764562666854,0.01239202,86011.0,86010.0,0.07644479]
[1764562667056,0.01239202,86011.0,86010.0,0.01501479]
[1764562667235,0.01239202,86011.0,86010.0,0.00764708]
[1764562667457,0.001,86011.0,86010.0,0.16634708]
[1764562667635,0.001,86011.0,86010.0,0.18960019]
[1764562668037,0.001,86011.0,86010.0,0.16634708]
[1764562668373,0.00039479,86012.0,86010.0,0.16634708]
[1764562668374,0.00039479,86012.0,86011.0,0.23252839]
[1764562668678,0.00039479,86012.0,86011.0,0.48097112]
[1764562669748,0.00139479,86012.0,86011.0,0.48897112]
[1764562670966,0.00139479,86012.0,86011.0,0.25644273]
[1764562671592,0.01278681,86012.0,86011.0,0.09774273]
[1764562672213,0.00139479,86012.0,86011.0,0.008]
[1764562672509,0.01278681,86012.0,86011.0,0.008]
[1764562672709,0.00139479,86012.0,86011.0,0.06871]
[1764562673006,0.00139479,86012.0,86011.0,0.19961443]
[1764562673210,0.00139479,86012.0,86011.0,0.10162443]
[1764562673567,0.00139479,86012.0,86011.0,0.19961443]
[1764562673774,0.00139479,86012.0,86011.0,0.20118498]
[1764562675643,0.00139479,86012.0,86011.0,0.22443781]
[1764562675840,0.00139479,86012.0,86011.0,0.54743781]
[1764562676060,4.79e-06,86012.0,86011.0,0.52418498]
[1764562676269,0.24405742,86046.0,86041.0,0.01162236]
[1764562676270,0.02301384,86045.0,86041.0,0.01162236]
[1764562676592,0.01162182,86045.0,86042.0,0.01162223]
[1764562676740,0.01162169,86046.0,86042.0,0.01162223]
[1764562676741,0.01139202,86043.0,86042.0,0.01162223]
[1764562676950,0.01162101,86051.0,86045.0,0.07233182]
[1764562677156,0.03614729,86053.0,86050.0,0.04799]
[1764562677352,0.01162115,86050.0,86045.0,0.06071]
[1764562677558,0.01139202,86045.0,86044.0,1.16272263]
[1764562677755,0.24402664,86057.0,86047.0,0.01162155]
[1764562677920,0.01162074,86053.0,86049.0,0.06071]
[1764562678279,0.001,86053.0,86050.0,0.01262115]
[1764562678415,0.001,86053.0,86052.0,0.06071]
[1764562678618,0.0116198,86060.0,86055.0,0.01162047]
[1764562678864,0.01139202,86058.0,86056.0,0.06584003]
[1764562679653,0.3346198,86060.0,86056.0,0.06584003]
[1764562679654,0.323,86060.0,86057.0,0.0116202]
[1764562679848,0.01139202,86058.0,86057.0,0.0116202]
[1764562680178,0.01139202,86066.0,86059.0,0.01161993]
[1764562680381,0.01161818,86072.0,86065.0,0.11435912]
[1764562680382,0.01161831,86071.0,86065.0,0.11435912]
[1764562680569,0.2323744,86068.0,86066.0,0.06023732]
[1764562680990,0.01139202,86067.0,86066.0,0.06023732]
[1764562681187,0.323,86071.0,86059.0,0.01161993]
[1764562681393,0.25535274,86080.0,86070.0,0.06071]
[1764562681678,0.0116171,86080.0,86073.0,0.01161804]
[1764562681810,0.24395196,86083.0,86073.0,0.01161804]
[1764562681811,0.01161683,86082.0,86075.0,0.01161777]
[1764562682017,0.01139202,86086.0,86079.0,0.01161723]
[1764562682219,0.09070903,86103.0,86081.0,0.06071]
[1764562682220,0.01139202,86082.0,86081.0,0.06071]
[1764562682651,0.01139202,86087.0,86083.0,0.01161669]
[1764562682850,0.01161507,86095.0,86092.0,0.04012]
[1764562683211,0.01161494,86096.0,86092.0,0.05173548]
[1764562683412,0.01161467,86098.0,86095.0,0.06071]
[1764562684066,0.00744,86100.0,86095.0,0.06071]
[1764562684345,0.00744,86100.0,86096.0,0.06002989]
[1764562684346,0.01139202,86097.0,86096.0,0.06002989]
[1764562684556,0.02300709,86095.0,86092.0,0.04012]
[1764562684757,0.01139202,86095.0,86092.0,0.04012]
[1764562684998,0.02300709,86095.0,86092.0,0.04012]
[1764562685200,0.01161494,86096.0,86092.0,0.05173548]
[1764562685404,0.01161467,86098.0,86095.0,0.06071]
[1764562685613,0.00944,86100.0,86096.0,0.05937454]
[1764562685614,0.0190544,86100.0,86096.0,0.05937454]
[1764562685784,0.01161453,86099.0,86096.0,0.0477596]
[1764562686195,0.01161345,86107.0,86098.0,0.06071]
[1764562686407,0.24389118,86104.0,86098.0,0.06071]
[1764562686631,0.01161413,86102.0,86099.0,0.022969]
[1764562686992,0.01139202,86100.0,86099.0,0.022969]
[1764562687397,0.0116144,86100.0,86099.0,0.06071]
[1764562687597,0.0116144,86100.0,86085.0,0.2323275]
[1764562687598,0.24394021,86087.0,86080.0,0.96665289]
[1764562687722,0.01139202,86085.0,86080.0,0.04799]
[1764562687918,0.02300871,86083.0,86080.0,0.04799]
[1764562688362,0.01139202,86083.0,86080.0,0.04799]
[1764562688580,0.01139202,86081.0,86080.0,0.14598]
[1764562688779,0.01161669,86083.0,86082.0,0.06071]
[1764562689176,0.01161669,86083.0,86082.0,0.1587]
[1764562689389,0.01161669,86083.0,86082.0,0.23058549]
[1764562689564,0.23233061,86085.0,86082.0,0.23058549]
[1764562689565,0.24394703,86085.0,86082.0,0.23058549]
[1764562689866,0.01161642,86085.0,86084.0,0.06071]
[1764562690217,0.24394493,86085.0,86084.0,0.06071]
[1764562690353,0.24394493,86085.0,86082.0,0.001]
[1764562690553,0.01161764,86076.0,86072.0,0.01161818]
[1764562690813,0.01161764,86076.0,86073.0,0.00633568]
[1764562690975,0.24397298,86076.0,86073.0,0.00633568]
[1764562691173,0.01139202,86074.0,86073.0,0.00633568]
[1764562691376,0.01161764,86076.0,86073.0,0.00633568]
[1764562691727,0.01161764,86076.0,86074.0,0.05461695]
[1764562691897,0.01139202,86075.0,86074.0,0.05461695]
[1764562692251,0.2323049,86094.0,86080.0,0.0116171]
[1764562692551,0.2439431,86086.0,86084.0,0.06071]
[1764562692779,0.25533512,86086.0,86084.0,0.06071]
[1764562693194,0.01161683,86082.0,86078.0,0.01161737]
[1764562693499,0.24395626,86081.0,86080.0,0.001]
[1764562693863,0.01161696,86081.0,86077.0,0.0116175]
[1764562694307,0.01161696,86081.0,86078.0,0.001]
[1764562694535,0.01161696,86081.0,86077.0,0.1096075]
[1764562694741,0.01161683,86082.0,86078.0,0.24396382]
[1764562694890,0.01161683,86082.0,86081.0,0.06071]
[1764562695291,0.2323393,86081.0,86079.0,0.07677471]
[1764562695533,0.01161737,86078.0,86073.0,0.10397112]
[1764562696050,0.2323447,86079.0,86077.0,0.06071]
[1764562696568,0.2323447,86079.0,86078.0,0.06171]
[1764562696766,0.2323447,86079.0,86078.0,0.06071]
[1764562697177,0.2323555,86075.0,86074.0,0.05661695]
[1764562697389,0.23236087,86074.0,86072.0,0.00011863]
[1764562697594,0.24375283,86074.0,86072.0,0.00011863]
[1764562698068,0.24375283,86074.0,86073.0,0.06648]
[1764562698249,0.01139202,86074.0,86073.0,0.06648]
[1764562698488,0.01139202,86074.0,86073.0,0.20366304]
[1764562698690,0.01139202,86085.0,86078.0,0.001]
[1764562698860,0.02300844,86085.0,86084.0,0.06648]
[1764562699458,0.01161602,86088.0,86084.0,0.15758]
[1764562699626,0.24393926,86087.0,86085.0,0.01924314]
[1764562699832,0.25533128,86087.0,86085.0,0.11034314]
[1764562700033,0.25533128,86087.0,86078.0,0.04834]
[1764562700034,0.01161683,86082.0,86078.0,0.04834]
[1764562700234,0.24373672,86079.0,86078.0,0.04834]
[1764562700649,0.24373672,86079.0,86078.0,0.11482]
[1764562700853,0.2323582,86074.0,86073.0,0.04608304]
[1764562701303,0.24375022,86074.0,86073.0,0.11256304]
[1764562701747,0.2323582,86074.0,86073.0,0.20366304]
[1764562701925,0.01139202,86074.0,86073.0,0.20366304]
[1764562702162,0.24397274,86076.0,86073.0,0.20366304]
[1764562702374,0.24397274,86076.0,86075.0,0.06648]
[1764562702776,0.01139202,86077.0,86075.0,0.06648]
[1764562702974,0.02300952,86077.0,86076.0,0.06648]
[1764562703327,0.0116144,86100.0,86080.0,0.0116171]
[1764562703543,0.01161534,86093.0,86083.0,0.23233391]
[1764562703841,0.01139202,86082.0,86081.0,0.04364]
[1764562704212,0.01161615,86087.0,86081.0,0.20122]
[1764562704410,0.01161642,86085.0,86081.0,0.13474]
[1764562704614,0.01161588,86089.0,86086.0,0.06648]
[1764562704855,0.24393359,86089.0,86088.0,0.06648]
[1764562705061,0.01161588,86089.0,86088.0,0.06648]
[1764562705232,0.24392955,86091.0,86088.0,0.15758]
[1764562705439,0.24392955,86091.0,86090.0,0.06648]
[1764562705636,0.24392955,86091.0,86090.0,0.015758]
[1764562705862,0.01161737,86078.0,86073.0,0.04608304]
[1764562706175,0.01161737,86078.0,86067.0,0.10271885]
[1764562706176,0.01139202,86076.0,86067.0,0.10271885]
[1764562706378,0.01139202,86076.0,86067.0,0.01161885]
[1764562706579,0.01139202,86076.0,86075.0,0.11482]
[1764562706719,0.01139202,86076.0,86075.0,0.20592]
[1764562706936,0.24397327,86075.0,86061.0,0.0911]
[1764562707150,0.0116175,86077.0,86067.0,0.01161885]
[1764562707351,0.01161777,86075.0,86070.0,0.0232369]
[1764562707579,0.01161777,86075.0,86067.0,0.91866289]
[1764562707580,0.01161777,86075.0,86073.0,0.09821384]
[1764562707905,0.01161777,86075.0,86074.0,0.06648]
[1764562708470,0.01139202,86073.0,86069.0,0.04012]
[1764562708673,0.01139202,86073.0,86072.0,0.09121863]
[1764562708894,0.2323582,86074.0,86072.0,0.17431811]
[1764562709095,0.2323582,86074.0,86073.0,0.06648]
[1764562709299,0.2323582,86074.0,86073.0,0.15758]
[1764562709460,0.02300979,86075.0,86073.0,0.15758]
[1764562709673,0.01161777,86075.0,86074.0,0.16136]
[1764562709879,0.01161777,86075.0,86074.0,0.18676739]
[1764562710882,0.01161723,86079.0,86074.0,0.21000321]
[1764562711139,0.0074,86086.0,86078.0,0.29892624]
[1764562711338,0.24393255,86090.0,86085.0,0.06658]
[1764562711511,0.24394068,86087.0,86086.0,0.006658]
[1764562711733,0.01161669,86083.0,86080.0,0.09478]
[1764562712179,0.01161669,86083.0,86082.0,0.11494]
[1764562712660,0.01161669,86083.0,86082.0,0.20972]
[1764562713158,0.24394596,86085.0,86082.0,0.20972]
[1764562713358,0.24394596,86085.0,86084.0,0.06658]
[1764562713519,0.01161575,86090.0,86084.0,0.09336059]
[1764562713859,0.01161602,86088.0,86085.0,0.09478]
[1764562714061,0.24393696,86088.0,86085.0,0.08478]
[1764562714262,0.24393696,86088.0,86087.0,0.06658]
[1764562714466,0.01161507,86095.0,86085.0,0.01161642]
[1764562714609,0.01161575,86090.0,86088.0,0.06658]
[1764562714816,0.01161588,86089.0,86086.0,0.01099908]
[1764562715047,0.23232041,86088.0,86086.0,0.01099908]
[1764562715256,0.01139202,86087.0,86086.0,0.01099908]
[1764562716006,0.23232311,86087.0,86086.0,0.07757908]
[1764562716205,0.24371513,86087.0,86086.0,0.07757908]
[1764562716546,0.24371513,86087.0,86086.0,0.01099908]
[1764562716865,0.24371513,86087.0,86086.0,0.01199908]
[1764562717066,0.24371513,86087.0,86086.0,0.001]
[1764562717253,0.24371513,86087.0,86086.0,0.002]
[1764562717457,0.01139202,86087.0,86086.0,0.06858]
[1764562717653,0.01139202,86087.0,86086.0,0.16236]
[1764562718256,0.24371513,86087.0,86086.0,0.16236]
[1764562718474,0.01139202,86087.0,86086.0,0.21015097]
[1764562718675,0.01139202,86087.0,86086.0,0.11537097]
[1764562718880,0.01139202,86087.0,86086.0,0.04879097]
[1764562719193,0.01139202,86085.0,86082.0,0.04836]
[1764562719390,0.01139202,86085.0,86083.0,0.09478]
[1764562719589,0.01161629,86086.0,86084.0,0.06658]
[1764562719838,0.01161588,86089.0,86084.0,0.06658]
[1764562719839,0.23230439,86094.0,86085.0,0.08981285]
[1764562719962,0.001,86087.0,86086.0,0.06658]
[1764562720163,0.24471513,86087.0,86086.0,0.07208597]
[1764562720368,0.24471513,86087.0,86082.0,0.04836]
[1764562720369,0.24372526,86084.0,86082.0,0.04836]
[1764562720566,0.01161642,86085.0,86070.0,1.15102953]
[1764562720567,0.0116175,86077.0,86074.0,0.07376739]
[1764562720811,0.24374752,86075.0,86072.0,0.00011863]
[1764562721008,0.24375292,86073.0,86072.0,0.00011863]
[1764562721384,0.24454327,86075.0,86072.0,0.00011863]
[1764562721385,0.24397327,86075.0,86072.0,0.00011863]
[1764562721610,0.01139202,86073.0,86072.0,0.06669863]
[1764562721828,0.01901696,86081.0,86076.0,0.23235243]
[1764562722039,0.02486582,86083.0,86082.0,0.01161683]
[1764562722234,0.2323034,86095.0,86082.0,0.01161683]
[1764562722235,0.0074,86087.0,86086.0,0.23232581]
[1764562722430,0.01161548,86092.0,86085.0,0.06658]
[1764562722592,0.01139202,86088.0,86086.0,0.04053147]
[1764562722804,0.01161575,86090.0,86087.0,0.16136]
[1764562723169,0.01161575,86090.0,86089.0,0.06658]
[1764562723371,0.02300777,86090.0,86089.0,0.06658]
[1764562723757,0.02300777,86090.0,86089.0,0.14936]
[1764562723893,0.2439251,86092.0,86089.0,0.21830014]
[1764562724089,0.01161548,86092.0,86090.0,0.09478]
[1764562724290,0.0230075,86092.0,86091.0,0.06658]
[1764562724697,0.0230075,86092.0,86091.0,0.16136]
[1764562725319,0.0230075,86092.0,86091.0,0.06658]
[1764562725573,0.0230075,86092.0,86091.0,0.10052379]
[1764562725917,0.0240075,86092.0,86091.0,0.10052379]
[1764562726121,0.0240075,86092.0,86091.0,0.03394379]
[1764562726419,0.01161561,86091.0,86085.0,0.01161642]
[1764562726645,0.01161575,86090.0,86086.0,0.23232581]
[1764562726809,0.01161575,86090.0,86085.0,0.09478]
[1764562726810,0.24393533,86089.0,86085.0,0.09478]
[1764562727006,0.01161426,86101.0,86088.0,0.06385]
[1764562727212,0.01161548,86092.0,86089.0,0.10526889]
[1764562727410,0.24370434,86091.0,86089.0,0.10526889]
[1764562727616,0.01161575,86090.0,86085.0,0.01161642]
[1764562727821,0.01161588,86089.0,86086.0,0.23232556]
[1764562728245,0.01161588,86089.0,86088.0,0.06385]
[1764562728644,0.01161588,86089.0,86088.0,0.15455]
[1764562729246,0.01161575,86090.0,86088.0,0.15455]
[1764562729463,0.01161575,86090.0,86089.0,0.06550571]
[1764562729641,0.24393359,86089.0,86088.0,0.001]
[1764562729840,0.01161575,86090.0,86088.0,0.001]
[1764562730240,0.01161575,86090.0,86089.0,0.06385]
[1764562730673,0.01161575,86090.0,86088.0,0.0917]
[1764562730674,0.23231771,86089.0,86088.0,0.002]
[1764562730872,0.24370973,86089.0,86088.0,0.002]
[1764562731031,0.24460973,86089.0,86088.0,0.001]
[1764562731231,0.01161534,86093.0,86088.0,0.001]
[1764562731232,0.0074,86096.0,86088.0,0.15555]
[1764562731478,0.24370877,86090.0,86089.0,0.015555]
[1764562731687,0.01161696,86081.0,86077.0,0.0907]
[1764562731925,0.02300858,86084.0,86078.0,0.24396477]
[1764562732088,0.01161656,86084.0,86078.0,0.24396477]
[1764562732493,0.01161696,86081.0,86077.0,0.0907]
[1764562732690,0.01161696,86081.0,86077.0,0.33466545]
[1764562732898,0.01161696,86081.0,86078.0,0.05756754]
[1764562733126,0.24394977,86084.0,86081.0,0.06385]
[1764562733352,0.23233583,86083.0,86081.0,0.06385]
[1764562733609,0.23233583,86083.0,86078.0,0.05756754]
[1764562733610,0.01161696,86081.0,86078.0,0.05756754]
[1764562734017,0.01161696,86081.0,86080.0,0.06385]
[1764562734220,0.01161696,86081.0,86080.0,0.13985357]
[1764562734453,0.02300858,86084.0,86080.0,0.37219316]
[1764562734633,0.01161642,86085.0,86081.0,0.23233712]
[1764562734808,0.01161642,86085.0,86083.0,0.06385]
[1764562735010,0.01161642,86085.0,86084.0,0.03236928]
[1764562735199,0.25533202,86087.0,86084.0,0.03236928]
[1764562735400,0.25533202,86087.0,86084.0,0.09621928]
[1764562735811,0.23232851,86085.0,86084.0,0.03236928]
[1764562736016,0.0074,86096.0,86080.0,0.07600357]
[1764562736017,0.0309063,86106.0,86100.0,0.0116144]
[1764562736216,0.02488453,86111.0,86109.0,0.08896]
[1764562736441,0.02488453,86111.0,86102.0,0.2438967]
[1764562736442,0.24636428,86110.0,86102.0,0.2438967]
[1764562736642,0.01161345,86107.0,86100.0,0.04933]
[1764562736878,0.01161386,86104.0,86101.0,0.06162379]
[1764562737084,0.01161386,86104.0,86097.0,0.0116148]
[1764562737085,0.01161399,86103.0,86097.0,0.0116148]
[1764562737259,0.01161426,86101.0,86096.0,0.01161494]
[1764562737624,0.01161426,86101.0,86096.0,0.0907]
[1764562738124,0.0116144,86100.0,86096.0,0.0907]
[1764562738320,0.01161453,86099.0,86096.0,0.0907]
[1764562738521,0.0116144,86100.0,86097.0,0.03462358]
[1764562738751,0.0116144,86100.0,86098.0,0.06385]
[1764562738948,0.2439038,86100.0,86098.0,0.06385]
[1764562739802,0.001,86100.0,86099.0,0.38684073]
[1764562739953,0.00039528,86104.0,86101.0,0.01161426]
[1764562740161,0.00039528,86104.0,86103.0,0.06385]
[1764562740541,0.00039528,86104.0,86103.0,0.15455]
[1764562741968,0.00039528,86104.0,86103.0,0.15655]
[1764562742187,0.00039528,86104.0,86103.0,0.14409]
[1764562742526,0.00039528,86104.0,86103.0,0.22098861]
[1764562743109,0.00039528,86104.0,86103.0,0.22198861]
[1764562743515,0.00039528,86104.0,86103.0,0.13128861]
[1764562743928,0.00039528,86104.0,86103.0,0.22198861]
[1764562746546,0.23267252,86104.0,86103.0,0.07989861]
[1764562746920,0.00039528,86104.0,86103.0,0.15755]
[1764562747360,0.01178731,86104.0,86103.0,0.15755]
[1764562747506,0.01178731,86104.0,86103.0,0.06585]
[1764562747712,0.01178731,86104.0,86102.0,0.04933]
[1764562747890,0.01178731,86104.0,86103.0,0.02054421]
[1764562748096,0.01178731,86104.0,86103.0,0.02154421]
[1764562748704,0.00039528,86104.0,86103.0,0.02154421]
[1764562749109,0.00039528,86104.0,86103.0,0.25382415]
[1764562749305,0.00039528,86104.0,86103.0,0.40837415]
[1764562749540,0.00039528,86104.0,86103.0,0.40937415]
[1764562750116,0.00039528,86104.0,86103.0,0.08639421]
[1764562750320,0.00039528,86104.0,86103.0,0.002]
[1764562751183,0.00039528,86104.0,86103.0,0.06585]
[1764562751725,0.05039528,86104.0,86103.0,0.06585]
[1764562751947,0.05039528,86104.0,86103.0,0.17977799]
[1764562752814,0.05039528,86104.0,86103.0,0.15655]
[1764562753009,0.05039528,86104.0,86103.0,0.27025291]
[1764562753275,0.05039528,86104.0,86103.0,0.12310291]
[1764562753700,0.05039528,86104.0,86103.0,0.18695291]
[1764562753902,0.05039528,86104.0,86103.0,0.27765291]
[1764562755767,0.05039528,86104.0,86103.0,0.11570291]
[1764562755971,0.05039528,86104.0,86103.0,0.06585]
[1764562756170,0.05039528,86104.0,86103.0,0.41205793]
[1764562756403,0.05039528,86104.0,86103.0,0.38882994]
[1764562757283,0.05039528,86104.0,86103.0,0.71182994]
[1764562757838,0.05039528,86104.0,86103.0,0.71082994]
[1764562758182,0.05039528,86104.0,86103.0,0.82353285]
[1764562758341,0.05039528,86104.0,86103.0,0.91710699]
[1764562758542,0.05039528,86104.0,86103.0,0.88705584]
[1764562758970,0.10639528,86104.0,86103.0,0.89005584]
[1764562759175,0.10539528,86104.0,86103.0,0.88605584]
[1764562759499,0.10539528,86104.0,86103.0,0.88705584]
[1764562759690,0.10539528,86104.0,86103.0,0.82453285]
[1764562759900,0.10539528,86104.0,86103.0,0.83093285]
[1764562760245,0.10539528,86104.0,86103.0,0.83193285]
[1764562760444,0.10539528,86104.0,86103.0,0.82453285]
[1764562760642,0.10639528,86104.0,86103.0,0.83793285]
[1764562761396,0.10639528,86104.0,86103.0,0.87960035]
[1764562762139,0.10639528,86104.0,86103.0,0.97217449]
[1764562762328,0.10639528,86104.0,86103.0,0.94212334]
[1764562763734,0.10639528,86104.0,86103.0,5.15586634]
[1764562763911,0.10639528,86104.0,86103.0,0.90045584]
[1764562764113,0.10639528,86104.0,86103.0,3.49122884]
[1764562764315,0.10639528,86104.0,86103.0,3.42807884]
[1764562764517,0.10639528,86104.0,86103.0,3.47664784]
[1764562764720,0.10639528,86104.0,86103.0,3.80210484]
[1764562765063,0.01160806,86147.0,86139.0,0.23218273]
[1764562765394,0.23217208,86143.0,86142.0,0.02984]
[1764562765601,0.2934522,86140.0,86139.0,0.01154454]
[1764562765739,0.24384823,86120.0,86117.0,0.01154454]
[1764562765912,0.24384295,86121.0,86118.0,0.00594745]
[1764562766320,0.2396069,86131.0,86120.0,0.0645]
[1764562766512,0.23220173,86132.0,86121.0,0.0645]
[1764562766733,0.24360129,86130.0,86121.0,0.29672879]
[1764562766967,0.01161089,86126.0,86122.0,0.10677694]
[1764562767199,0.01161103,86125.0,86121.0,0.23222879]
[1764562767370,0.01161062,86128.0,86123.0,0.2322259]
[1764562767774,6.887e-05,86130.0,86124.0,0.2322233]
[1764562768070,0.01161076,86127.0,86123.0,0.23222373]
[1764562768214,0.001,86126.0,86123.0,0.23222373]
[1764562768427,0.01161076,86127.0,86124.0,0.08181492]
[1764562768624,0.01161076,86127.0,86118.0,0.01749199]
[1764562768625,0.01161089,86126.0,86120.0,0.23223187]
[1764562768871,0.02300279,86127.0,86122.0,0.23222654]
[1764562769022,0.01161076,86127.0,86124.0,0.2322231]
[1764562769225,0.01139203,86127.0,86124.0,0.2322231]
[1764562769425,0.003,86128.0,86126.0,0.29671564]
[1764562769784,0.003,86128.0,86127.0,0.14061604]
[1764562769990,6.887e-05,86130.0,86127.0,0.07611604]
[1764562769991,0.01167922,86130.0,86127.0,0.07611604]
[1764562770201,0.01139203,86125.0,86118.0,0.01749199]
[1764562770436,0.01139203,86125.0,86119.0,0.23223631]
[1764562770634,0.02300292,86126.0,86121.0,0.23223115]
[1764562770844,0.02300292,86126.0,86123.0,0.23222546]
[1764562770983,0.01139203,86126.0,86124.0,0.04819486]
[1764562771775,0.001,86125.0,86124.0,0.04819486]
[1764562771988,0.02300265,86128.0,86124.0,0.04819486]
[1764562772226,0.01139203,86126.0,86124.0,0.04919486]
[1764562772433,0.01139203,86126.0,86125.0,0.2322206]
[1764562772641,0.01139203,86126.0,86125.0,0.30796899]
[1764562772850,0.101,86128.0,86125.0,0.30796899]
[1764562773058,0.101,86128.0,86126.0,0.23221604]
[1764562773797,0.11261062,86128.0,86125.0,0.07574839]
[1764562774019,0.24361263,86125.0,86124.0,0.001]
[1764562774219,0.01139203,86119.0,86118.0,0.01749199]
[1764562774414,0.08023087,86121.0,86118.0,0.01749199]
[1764562774633,0.01139203,86119.0,86118.0,0.01749199]
[1764562774845,0.23223669,86120.0,86118.0,0.01749199]
[1764562775059,0.24362872,86120.0,86119.0,0.02497441]
[1764562775265,0.24362872,86120.0,86118.0,0.01154454]
[1764562775506,0.24362872,86120.0,86100.0,0.23228722]
[1764562775507,0.01139203,86103.0,86100.0,0.01154454]
[1764562775730,0.01139203,86103.0,86101.0,0.27236533]
[1764562775941,0.04074,86109.0,86105.0,0.23227217]
[1764562776163,0.05213203,86109.0,86108.0,0.23226645]
[1764562776628,0.05225055,86109.0,86108.0,0.23226645]
[1764562777235,0.05525055,86109.0,86108.0,0.23226645]
[1764562777490,0.05525055,86109.0,86108.0,0.28559948]
[1764562777712,0.05525055,86109.0,86108.0,0.05333303]
[1764562777916,0.00311852,86109.0,86108.0,0.39173645]
[1764562778559,0.00311852,86109.0,86108.0,0.29676645]
[1764562779397,0.00311852,86109.0,86108.0,0.23226645]
[1764562779610,0.00011852,86109.0,86108.0,0.23226645]
[1764562780019,0.00111852,86109.0,86108.0,0.23226645]
[1764562780226,0.00011852,86109.0,86108.0,0.33395645]
[1764562780464,0.00211852,86109.0,86108.0,0.33395645]
[1764562780911,0.00211852,86109.0,86108.0,0.33495645]
[1764562781399,0.00211852,86109.0,86108.0,0.39845645]
[1764562781709,0.00211852,86109.0,86108.0,0.49442645]
[1764562783886,0.00211852,86109.0,86108.0,0.33495645]
[1764562784822,0.00211852,86109.0,86108.0,0.49442645]
[1764562789276,0.00011852,86109.0,86108.0,0.49342645]
[1764562789676,0.00111852,86109.0,86108.0,0.49442645]
[1764562791789,0.00111852,86109.0,86108.0,0.40685645]
[1764562792853,0.00111852,86109.0,86108.0,0.50465645]
[1764562793487,0.00111852,86109.0,86108.0,0.49725645]
[1764562793836,0.00111852,86109.0,86108.0,0.39945645]
[1764562795265,0.00111852,86109.0,86108.0,0.49725645]
[1764562795669,0.00111852,86109.0,86108.0,0.39945645]
[1764562796055,0.00111852,86109.0,86108.0,0.49725645]
[1764562799382,0.00111852,86109.0,86108.0,0.33495645]
[1764562799571,0.00111852,86109.0,86108.0,0.33395645]
[1764562799772,0.00111852,86109.0,86108.0,0.39978645]
[1764562799992,0.00011852,86109.0,86108.0,0.40078645]
[1764562800167,0.00011852,86109.0,86108.0,0.49858645]
[1764562800585,0.00011852,86109.0,86108.0,0.49758645]
[1764562801778,0.00011852,86109.0,86108.0,0.50598645]
[1764562802401,0.00011852,86109.0,86108.0,0.50498645]
[1764562802806,0.00011852,86109.0,86108.0,0.49858645]
[1764562803030,0.00011852,86109.0,86108.0,0.49958645]
[1764562803762,0.00011852,86109.0,86108.0,0.49858645]
[1764562804320,0.00011852,86109.0,86108.0,0.40078645]
[1764562804725,0.23238497,86109.0,86102.0,0.04556391]
[1764562804924,0.23238497,86109.0,86100.0,0.01154454]
[1764562804925,0.01139203,86102.0,86100.0,0.01154454]
[1764562805359,0.02312373,86109.0,86102.0,0.23228033]
[1764562805553,0.00011852,86109.0,86103.0,0.23227755]
[1764562805713,0.01139203,86105.0,86104.0,0.23227505]
[1764562806217,0.01139203,86107.0,86103.0,0.2322777]
[1764562806431,0.01139203,86107.0,86104.0,0.25782093]
[1764562806908,0.00011852,86109.0,86106.0,0.30971544]
[1764562807029,0.23227185,86106.0,86104.0,0.02554369]
[1764562807232,0.10711345,86107.0,86086.0,0.01154454]
[1764562807233,0.01139203,86093.0,86086.0,0.01154454]
[1764562807555,0.01139203,86094.0,86090.0,0.23231291]
[1764562807808,0.01139203,86097.0,86092.0,0.23230962]
[1764562807968,0.23227678,86105.0,86094.0,0.10397112]
[1764562807969,0.01161386,86104.0,86094.0,0.10397112]
[1764562808174,0.01139203,86102.0,86097.0,0.23229613]
[1764562808374,0.01139203,86102.0,86098.0,0.23229115]
[1764562809234,0.01161399,86103.0,86093.0,0.03535073]
[1764562809235,0.04074,86099.0,86093.0,0.03535073]
[1764562809387,0.01139203,86095.0,86094.0,0.03540197]
[1764562809595,0.02300724,86094.0,86089.0,0.27073696]
[1764562809796,0.01139203,86088.0,86084.0,0.23233035]
[1764562809996,0.01139203,86090.0,86084.0,0.23233035]
[1764562810196,0.01139203,86090.0,86087.0,0.04994445]
[1764562810197,0.11283778,86090.0,86087.0,0.04994445]
[1764562810542,0.01139203,86090.0,86087.0,0.23232262]
[1764562811480,0.02300778,86090.0,86087.0,0.23232262]
[1764562811693,0.01139203,86090.0,86087.0,0.23232262]
[1764562812330,0.01439203,86090.0,86087.0,0.23232262]
[1764562812727,0.02600778,86090.0,86085.0,0.23232599]
[1764562812971,0.02600778,86090.0,86086.0,0.11370291]
[1764562813095,0.01439203,86090.0,86087.0,0.23232311]
[1764562814160,0.01439203,86090.0,86087.0,0.24393926]
[1764562814492,0.24393359,86089.0,86086.0,0.11370291]
[1764562814668,0.02600778,86090.0,86086.0,0.11370291]
[1764562814879,0.02600778,86090.0,86087.0,0.26924981]
[1764562815255,0.24693099,86090.0,86087.0,0.0369267]
[1764562815455,0.24693099,86090.0,86079.0,0.24396102]
[1764562815456,0.01161669,86083.0,86077.0,0.01154454]
[1764562815636,0.01139203,86080.0,86077.0,0.01154454]
[1764562815981,0.01139203,86083.0,86079.0,0.24396193]
[1764562816324,0.01161656,86084.0,86079.0,0.24396193]
[1764562816528,0.02300859,86084.0,86080.0,0.07127859]
[1764562816860,0.01139203,86092.0,86086.0,0.01161629]
[1764562817327,0.046,86107.0,86091.0,0.12669561]
[1764562817469,0.01161305,86110.0,86104.0,0.06632]
[1764562817675,0.01161345,86107.0,86104.0,0.19664729]